[Event "Early-Titled-Tuesday-Blitz-May-07-2024"]
[Site "Chess.com"]
[Date "2024.05.07"]
[Round "4"]
[White "Kotlyar_K"]
[Black "tomesao"]
[Result "0-1"]
[WhiteElo "2668"]
[BlackElo "2512"]
[TimeControl "180+1"]
[EndTime "8:43:37 PDT"]
[Termination "tomesao won by resignation"]

1. d4 {[%clk 0:02:55.5]} 1... d5 {[%clk 0:02:59.8]} 2. c4 {[%clk 0:02:55.4]}
2... e6 {[%clk 0:03:00.3]} 3. Nc3 {[%clk 0:02:55.3]} 3... Nf6 {[%clk 0:03:00.8]}
4. cxd5 {[%clk 0:02:55.4]} 4... exd5 {[%clk 0:03:00.7]} 5. Bg5 {[%clk 0:02:50]}
5... Be7 {[%clk 0:03:00.5]} 6. e3 {[%clk 0:02:02.9]} 6... Nbd7 {[%clk
0:02:59.7]} 7. Bd3 {[%clk 0:01:55.6]} 7... h6 {[%clk 0:02:59.8]} 8. Bf4 {[%clk
0:01:39.6]} 8... O-O {[%clk 0:02:57.6]} 9. Nge2 {[%clk 0:01:40]} 9... c6 {[%clk
0:02:44.6]} 10. O-O {[%clk 0:01:39.1]} 10... Re8 {[%clk 0:02:43.9]} 11. h3
{[%clk 0:01:36.9]} 11... Nf8 {[%clk 0:02:43.8]} 12. Qc2 {[%clk 0:01:36.7]} 12...
Bd6 {[%clk 0:02:43.4]} 13. Rab1 {[%clk 0:01:30.2]} 13... Ne6 {[%clk 0:02:41.2]}
14. Bxd6 {[%clk 0:01:29.2]} 14... Qxd6 {[%clk 0:02:42.1]} 15. b4 {[%clk
0:01:29.1]} 15... Ng5 {[%clk 0:02:39.8]} 16. Nf4 {[%clk 0:01:24.1]} 16... Nfe4
{[%clk 0:02:33.6]} 17. Nxe4 {[%clk 0:01:22.9]} 17... Nxe4 {[%clk 0:02:31.6]} 18.
b5 {[%clk 0:01:22.2]} 18... Bd7 {[%clk 0:02:19.3]} 19. bxc6 {[%clk 0:01:21.3]}
19... Bxc6 {[%clk 0:02:18.8]} 20. Bxe4 {[%clk 0:01:13.9]} 20... dxe4 {[%clk
0:02:18.1]} 21. Rfd1 {[%clk 0:01:07.7]} 21... g5 {[%clk 0:02:16.8]} 22. Ne2
{[%clk 0:01:07.3]} 22... Rac8 {[%clk 0:02:12.2]} 23. Qb2 {[%clk 0:01:00.4]}
23... b6 {[%clk 0:02:09.8]} 24. Rbc1 {[%clk 0:00:56]} 24... Ba4 {[%clk
0:01:52.8]} 25. Re1 {[%clk 0:00:47.9]} 25... Bd7 {[%clk 0:01:46.8]} 26. Rxc8
{[%clk 0:00:44.1]} 26... Rxc8 {[%clk 0:01:46.3]} 27. Rc1 {[%clk 0:00:45]} 27...
Rxc1+ {[%clk 0:01:43.9]} 28. Qxc1 {[%clk 0:00:45.9]} 28... Kg7 {[%clk
0:01:38.5]} 29. Qc3 {[%clk 0:00:41.1]} 29... Kg6 {[%clk 0:01:35]} 30. a3 {[%clk
0:00:37.2]} 30... a5 {[%clk 0:01:32.5]} 31. Qc2 {[%clk 0:00:35.4]} 31... f5
{[%clk 0:01:30.5]} 32. Qc3 {[%clk 0:00:29.1]} 32... Qc6 {[%clk 0:01:26.3]} 33.
Qd2 {[%clk 0:00:25.1]} 33... Be6 {[%clk 0:01:23.4]} 34. Nc3 {[%clk 0:00:22.6]}
34... Qc4 {[%clk 0:01:21.2]} 35. d5 {[%clk 0:00:20.7]} 35... Bd7 {[%clk
0:01:21.1]} 36. Ne2 {[%clk 0:00:17.5]} 36... Qd3 {[%clk 0:01:17]} 37. Qb2 {[%clk
0:00:15.1]} 37... b5 {[%clk 0:01:02.2]} 38. Nd4 {[%clk 0:00:14.9]} 38... b4
{[%clk 0:01:00.5]} 39. axb4 {[%clk 0:00:15.3]} 39... a4 {[%clk 0:01:00.3]} 40.
Qc2 {[%clk 0:00:13.4]} 40... Qxc2 {[%clk 0:00:50]} 41. Nxc2 {[%clk 0:00:14.3]}
41... Kf6 {[%clk 0:00:50.8]} 42. Kf1 {[%clk 0:00:04.6]} 42... Ke5 {[%clk
0:00:50.3]} 43. Ke1 {[%clk 0:00:05.5]} 43... Kxd5 {[%clk 0:00:50.1]} 44. Kd2
{[%clk 0:00:06.4]} 44... Kc4 {[%clk 0:00:49.4]} 45. g3 {[%clk 0:00:06]} 45...
Kb3 {[%clk 0:00:45.9]} 46. Kc1 {[%clk 0:00:06.3]} 46... a3 {[%clk 0:00:44.9]}
47. Nd4+ {[%clk 0:00:05.3]} 47... Kxb4 {[%clk 0:00:41.1]} 48. Kc2 {[%clk
0:00:05.9]} 48... Ba4+ {[%clk 0:00:39.9]} 49. Kc1 {[%clk 0:00:06.4]} 49... Bd7
{[%clk 0:00:29.4]} 50. Kc2 {[%clk 0:00:06.5]} 50... Kc4 {[%clk 0:00:28.9]} 51.
h4 {[%clk 0:00:05.2]} 51... gxh4 {[%clk 0:00:26.6]} 52. gxh4 {[%clk 0:00:06.1]}
52... f4 {[%clk 0:00:27]} 53. Ne2 {[%clk 0:00:04.2]} 53... fxe3 {[%clk
0:00:22.6]} 54. fxe3 {[%clk 0:00:05.1]} 54... Ba4+ {[%clk 0:00:22.5]} 55. Kc1
{[%clk 0:00:05.4]} 55... Kd3 {[%clk 0:00:20.2]} 56. Nf4+ {[%clk 0:00:04.8]}
56... Kxe3 {[%clk 0:00:20]} 57. Nd5+ {[%clk 0:00:05.7]} 57... Kf2 {[%clk
0:00:17.5]} 58. Nc3 {[%clk 0:00:05.5]} 58... Bc6 {[%clk 0:00:17.5]} 59. Kc2
{[%clk 0:00:04.9]} 59... e3 {[%clk 0:00:17.5]} 60. Nd1+ {[%clk 0:00:02.5]} 60...
Kf3 {[%clk 0:00:16.2]} 61. Kd3 {[%clk 0:00:02.6]} 61... Be4+ {[%clk 0:00:15]}
62. Kc3 {[%clk 0:00:02.6]} 62... e2 {[%clk 0:00:15.2]} 0-1

[Event "Early-Titled-Tuesday-Blitz-May-07-2024"]
[Site "Chess.com"]
[Date "2024.05.07"]
[Round "4"]
[White "Nadtkins"]
[Black "Supergiuly"]
[Result "1-0"]
[WhiteElo "2536"]
[BlackElo "2344"]
[TimeControl "180+1"]
[EndTime "8:43:37 PDT"]
[Termination "Nadtkins won by resignation"]

1. Nf3 {[%clk 0:02:57.7]} 1... b6 {[%clk 0:02:52.3]} 2. g3 {[%clk 0:02:55.4]}
2... Bb7 {[%clk 0:02:52.7]} 3. Bg2 {[%clk 0:02:56]} 3... g5 {[%clk 0:02:52]} 4.
e4 {[%clk 0:02:25.8]} 4... Bxe4 {[%clk 0:02:48.6]} 5. Nc3 {[%clk 0:02:22.7]}
5... Bb7 {[%clk 0:02:47.1]} 6. O-O {[%clk 0:02:19.4]} 6... e6 {[%clk 0:02:45.2]}
7. d4 {[%clk 0:02:15.9]} 7... h6 {[%clk 0:02:39.2]} 8. d5 {[%clk 0:02:08.9]}
8... Bg7 {[%clk 0:02:34.9]} 9. Nd4 {[%clk 0:01:48.5]} 9... Ne7 {[%clk
0:02:30.2]} 10. dxe6 {[%clk 0:01:44.2]} 10... Bxg2 {[%clk 0:02:27.9]} 11. exf7+
{[%clk 0:01:43.9]} 11... Kxf7 {[%clk 0:02:28.8]} 12. Kxg2 {[%clk 0:01:31]} 12...
Nbc6 {[%clk 0:02:16.6]} 13. Be3 {[%clk 0:01:20.4]} 13... Rf8 {[%clk 0:02:11.4]}
14. f4 {[%clk 0:01:08.5]} 14... gxf4 {[%clk 0:02:06.7]} 15. Rxf4+ {[%clk
0:01:07.4]} 15... Kg8 {[%clk 0:02:06.9]} 16. Nxc6 {[%clk 0:00:55.3]} 16... Nxc6
{[%clk 0:01:44.4]} 17. Qd5+ {[%clk 0:00:50.3]} 17... Kh8 {[%clk 0:01:43.7]} 18.
Raf1 {[%clk 0:00:50.8]} 18... Qe7 {[%clk 0:01:32.3]} 19. Re4 {[%clk 0:00:43.8]}
19... Qd8 {[%clk 0:00:56.9]} 20. Rxf8+ {[%clk 0:00:37.9]} 20... Qxf8 {[%clk
0:00:56.9]} 21. Qxd7 {[%clk 0:00:34.5]} 21... Ne5 {[%clk 0:00:57]} 22. Rxe5
{[%clk 0:00:17]} 22... Bxe5 {[%clk 0:00:55.5]} 23. Ne4 {[%clk 0:00:14.2]} 23...
Rd8 {[%clk 0:00:53.7]} 24. Qc6 {[%clk 0:00:13.4]} 24... Qf5 {[%clk 0:00:34.9]}
25. Qxh6+ {[%clk 0:00:11.9]} 25... Kg8 {[%clk 0:00:34.4]} 26. Ng5 {[%clk
0:00:08.1]} 26... Bg7 {[%clk 0:00:30.5]} 27. Qc6 {[%clk 0:00:04.3]} 27... Rf8
{[%clk 0:00:24.4]} 28. Bf4 {[%clk 0:00:03.8]} 28... Qc5 {[%clk 0:00:19]} 29.
Qxc5 {[%clk 0:00:03.6]} 29... bxc5 {[%clk 0:00:19.9]} 30. b3 {[%clk 0:00:02.7]}
30... Rd8 {[%clk 0:00:17.5]} 31. Kf3 {[%clk 0:00:01.6]} 31... c4 {[%clk
0:00:11.4]} 32. bxc4 {[%clk 0:00:01.7]} 32... Rd4 {[%clk 0:00:11.2]} 33. c5
{[%clk 0:00:00.8]} 33... Rc4 {[%clk 0:00:11]} 34. Ne6 {[%clk 0:00:01.4]} 34...
Rxc2 {[%clk 0:00:09.9]} 35. a4 {[%clk 0:00:02]} 35... Rxh2 {[%clk 0:00:09.4]}
36. Bxc7 {[%clk 0:00:01.9]} 36... Ra2 {[%clk 0:00:09]} 37. a5 {[%clk 0:00:01.6]}
37... Rc2 {[%clk 0:00:08.5]} 38. Ke4 {[%clk 0:00:00.7]} 38... Bf8 {[%clk
0:00:08.7]} 39. Kd5 {[%clk 0:00:01.6]} 39... Rd2+ {[%clk 0:00:08.2]} 40. Kc6
{[%clk 0:00:02]} 40... Re2 {[%clk 0:00:08.3]} 41. Nd8 {[%clk 0:00:02.6]} 41...
Rg2 {[%clk 0:00:06]} 42. Nb7 {[%clk 0:00:03.5]} 42... Rf2 {[%clk 0:00:06]} 43.
Bd6 {[%clk 0:00:04.4]} 43... Rf6 {[%clk 0:00:06.1]} 44. Kc7 {[%clk 0:00:04.5]}
44... Bh6 {[%clk 0:00:06.4]} 45. a6 {[%clk 0:00:04.2]} 45... Rf7+ {[%clk
0:00:07.3]} 46. Kc6 {[%clk 0:00:04.2]} 46... Be3 {[%clk 0:00:07.4]} 47. Na5
{[%clk 0:00:04.7]} 47... Rf8 {[%clk 0:00:07.7]} 48. Nc4 {[%clk 0:00:05.4]} 48...
Rc8+ {[%clk 0:00:07.7]} 49. Kd5 {[%clk 0:00:05.5]} 49... Bc1 {[%clk 0:00:06.9]}
50. Na5 {[%clk 0:00:05.8]} 50... Bg5 {[%clk 0:00:07.1]} 51. Nc6 {[%clk
0:00:06.7]} 51... Ra8 {[%clk 0:00:07.2]} 52. Ke6 {[%clk 0:00:05.7]} 52... Bd2
{[%clk 0:00:07.7]} 53. Ne7+ {[%clk 0:00:06.6]} 53... Kf8 {[%clk 0:00:07.5]} 54.
Nd5+ {[%clk 0:00:07.5]} 54... Ke8 {[%clk 0:00:07.7]} 55. c6 {[%clk 0:00:08.1]}
55... Ba5 {[%clk 0:00:05.8]} 56. c7 {[%clk 0:00:09]} 56... Rc8 {[%clk
0:00:05.6]} 57. g4 {[%clk 0:00:08.8]} 57... Bb6 {[%clk 0:00:03.5]} 58. g5 {[%clk
0:00:08.6]} 58... Be3 {[%clk 0:00:03.1]} 59. g6 {[%clk 0:00:08.9]} 59... Bh6
{[%clk 0:00:03.7]} 60. Nb4 {[%clk 0:00:08.5]} 60... Bf8 {[%clk 0:00:03]} 61. Nc6
{[%clk 0:00:08.5]} 61... Bxd6 {[%clk 0:00:02.6]} 62. Kxd6 {[%clk 0:00:09.4]}
62... Kf8 {[%clk 0:00:03.2]} 63. Nxa7 {[%clk 0:00:09.4]} 63... Ra8 {[%clk
0:00:03.3]} 64. c8=Q+ {[%clk 0:00:10.3]} 64... Rxc8 {[%clk 0:00:03.4]} 65. Nxc8
{[%clk 0:00:11.2]} 65... Kg7 {[%clk 0:00:04]} 66. a7 {[%clk 0:00:12.1]} 66...
Kxg6 {[%clk 0:00:04.9]} 67. a8=Q {[%clk 0:00:12.7]} 1-0

[Event "Early-Titled-Tuesday-Blitz-May-07-2024"]
[Site "Chess.com"]
[Date "2024.05.07"]
[Round "4"]
[White "Arlo2024"]
[Black "andriipalchuk"]
[Result "0-1"]
[WhiteElo "2405"]
[BlackElo "2611"]
[TimeControl "180+1"]
[EndTime "8:43:39 PDT"]
[Termination "andriipalchuk won on time"]

1. e4 {[%clk 0:02:56.3]} 1... c6 {[%clk 0:02:59.5]} 2. d4 {[%clk 0:02:52.8]}
2... d5 {[%clk 0:02:59.9]} 3. exd5 {[%clk 0:02:53.1]} 3... cxd5 {[%clk
0:03:00.4]} 4. Bd3 {[%clk 0:02:53]} 4... Nc6 {[%clk 0:02:59.9]} 5. c3 {[%clk
0:02:53]} 5... Nf6 {[%clk 0:03:00]} 6. h3 {[%clk 0:02:53.1]} 6... g6 {[%clk
0:02:57.4]} 7. Nf3 {[%clk 0:02:53]} 7... Bg7 {[%clk 0:02:57.9]} 8. O-O {[%clk
0:02:51.9]} 8... O-O {[%clk 0:02:58.2]} 9. Bf4 {[%clk 0:02:51.8]} 9... Bf5
{[%clk 0:02:58]} 10. Re1 {[%clk 0:02:50.6]} 10... Re8 {[%clk 0:02:55.6]} 11. Ne5
{[%clk 0:02:47.4]} 11... Qc8 {[%clk 0:02:54]} 12. Qe2 {[%clk 0:02:43.1]} 12...
Ne4 {[%clk 0:02:49.6]} 13. Nxc6 {[%clk 0:02:28.8]} 13... bxc6 {[%clk 0:02:05.9]}
14. Nd2 {[%clk 0:02:27.9]} 14... Nxd2 {[%clk 0:02:02.7]} 15. Qxd2 {[%clk
0:02:28]} 15... Bxd3 {[%clk 0:01:56.7]} 16. Qxd3 {[%clk 0:02:28.9]} 16... Qf5
{[%clk 0:01:51.6]} 17. Qxf5 {[%clk 0:02:27.8]} 17... gxf5 {[%clk 0:01:52.5]} 18.
b4 {[%clk 0:02:23]} 18... e6 {[%clk 0:01:52.3]} 19. Bd6 {[%clk 0:02:11.7]} 19...
h5 {[%clk 0:01:36.6]} 20. a4 {[%clk 0:02:09.6]} 20... a6 {[%clk 0:01:34.3]} 21.
a5 {[%clk 0:02:05.6]} 21... Kh7 {[%clk 0:01:33.1]} 22. h4 {[%clk 0:01:34.3]}
22... Bf6 {[%clk 0:01:29.2]} 23. g3 {[%clk 0:01:33.5]} 23... Rg8 {[%clk
0:01:29]} 24. Kh2 {[%clk 0:01:31.3]} 24... Rg4 {[%clk 0:01:27.5]} 25. f3 {[%clk
0:01:19.4]} 25... Rg6 {[%clk 0:01:21.8]} 26. Rg1 {[%clk 0:01:13.6]} 26... Rd8
{[%clk 0:01:20.7]} 27. Bc7 {[%clk 0:01:06.3]} 27... Rc8 {[%clk 0:01:20.7]} 28.
Bd6 {[%clk 0:01:06.1]} 28... Rd8 {[%clk 0:01:20.9]} 29. Bc7 {[%clk 0:01:06.3]}
29... Rdg8 {[%clk 0:01:21.5]} 30. Rae1 {[%clk 0:01:03]} 30... Be7 {[%clk
0:01:16.3]} 31. f4 {[%clk 0:00:58.8]} 31... Kg7 {[%clk 0:01:14.3]} 32. Re3
{[%clk 0:00:58.3]} 32... Kf8 {[%clk 0:01:14.3]} 33. Rge1 {[%clk 0:00:55.9]}
33... Ke8 {[%clk 0:01:14.7]} 34. Kh3 {[%clk 0:00:40.2]} 34... Kd7 {[%clk
0:01:13.4]} 35. Bb6 {[%clk 0:00:36.7]} 35... Rg4 {[%clk 0:01:03.6]} 36. Rf3
{[%clk 0:00:33.1]} 36... Bd6 {[%clk 0:01:02]} 37. Bc5 {[%clk 0:00:25.7]} 37...
Bc7 {[%clk 0:01:02.2]} 38. Ree3 {[%clk 0:00:24.9]} 38... R4g6 {[%clk 0:00:51.9]}
39. Re2 {[%clk 0:00:24.7]} 39... f6 {[%clk 0:00:46.4]} 40. Ree3 {[%clk
0:00:19.8]} 40... Rg4 {[%clk 0:00:45.6]} 41. Rf2 {[%clk 0:00:19.5]} 41... R8g7
{[%clk 0:00:39.5]} 42. Rff3 {[%clk 0:00:18]} 42... Rf7 {[%clk 0:00:38.7]} 43.
Rf2 {[%clk 0:00:18.2]} 43... Rg8 {[%clk 0:00:34.3]} 44. Rff3 {[%clk 0:00:18.4]}
44... Re8 {[%clk 0:00:34.2]} 45. Rf2 {[%clk 0:00:18.5]} 45... e5 {[%clk
0:00:27.2]} 46. fxe5 {[%clk 0:00:15.3]} 46... fxe5 {[%clk 0:00:28.1]} 47. dxe5
{[%clk 0:00:14.7]} 47... Rxe5 {[%clk 0:00:25.8]} 48. Ref3 {[%clk 0:00:11.8]}
48... Ke6 {[%clk 0:00:23.1]} 49. Bd4 {[%clk 0:00:11.6]} 49... Re4 {[%clk
0:00:23.6]} 50. Be3 {[%clk 0:00:07.8]} 50... Be5 {[%clk 0:00:22.2]} 51. Bf4
{[%clk 0:00:07.3]} 51... Bf6 {[%clk 0:00:22.7]} 52. Rd2 {[%clk 0:00:03]} 52...
Rg7 {[%clk 0:00:21.5]} 53. Rdf2 {[%clk 0:00:03.3]} 53... Rf7 {[%clk 0:00:20.3]}
54. Bd2 {[%clk 0:00:03.1]} 54... Bg7 {[%clk 0:00:20.5]} 55. Bf4 {[%clk
0:00:02.4]} 55... Rc4 {[%clk 0:00:21.1]} 56. Bd2 {[%clk 0:00:03.1]} 56... Be5
{[%clk 0:00:20.3]} 57. Re3 {[%clk 0:00:03.4]} 57... Kf6 {[%clk 0:00:19.9]} 58.
Ref3 {[%clk 0:00:04.1]} 58... Kg6 {[%clk 0:00:19.6]} 59. Re3 {[%clk 0:00:04.4]}
59... Bf6 {[%clk 0:00:17.7]} 60. Ref3 {[%clk 0:00:05.1]} 60... Bg7 {[%clk
0:00:17]} 61. Rf4 {[%clk 0:00:03.5]} 61... Re4 {[%clk 0:00:17.2]} 62. Rxe4
{[%clk 0:00:02.9]} 62... dxe4 {[%clk 0:00:17.9]} 63. Kg2 {[%clk 0:00:02.4]}
63... Rd7 {[%clk 0:00:18]} 64. Re2 {[%clk 0:00:02.1]} 64... Rd3 {[%clk
0:00:17.6]} 65. Bf4 {[%clk 0:00:00.7]} 65... Bxc3 {[%clk 0:00:16.1]} 66. Rc2
{[%clk 0:00:00.1]} 66... Kf6 {[%clk 0:00:15.9]} 0-1

[Event "Early-Titled-Tuesday-Blitz-May-07-2024"]
[Site "Chess.com"]
[Date "2024.05.07"]
[Round "4"]
[White "praveenb2002"]
[Black "GM_dmitrij"]
[Result "1/2-1/2"]
[WhiteElo "2865"]
[BlackElo "3051"]
[TimeControl "180+1"]
[EndTime "8:43:40 PDT"]
[Termination "Game drawn - insufficient material"]

1. c4 {[%clk 0:03:00.9]} 1... e5 {[%clk 0:02:58.6]} 2. g3 {[%clk 0:02:59.7]}
2... c6 {[%clk 0:02:58.6]} 3. Nf3 {[%clk 0:02:56.9]} 3... e4 {[%clk 0:02:58.2]}
4. Nd4 {[%clk 0:02:57.3]} 4... d5 {[%clk 0:02:59.1]} 5. cxd5 {[%clk 0:02:48.2]}
5... Qxd5 {[%clk 0:03:00]} 6. Nc2 {[%clk 0:02:47.3]} 6... Nf6 {[%clk 0:02:57.7]}
7. Nc3 {[%clk 0:02:44.2]} 7... Qe5 {[%clk 0:02:58]} 8. Bg2 {[%clk 0:02:43.8]}
8... Na6 {[%clk 0:02:58.4]} 9. O-O {[%clk 0:02:38.3]} 9... Be7 {[%clk 0:02:56]}
10. d4 {[%clk 0:02:27.9]} 10... exd3 {[%clk 0:02:55.9]} 11. Qxd3 {[%clk
0:02:27.9]} 11... Nc5 {[%clk 0:02:31.5]} 12. Qe3 {[%clk 0:02:19.7]} 12... Qh5
{[%clk 0:02:31.5]} 13. Qg5 {[%clk 0:02:17.8]} 13... Qg6 {[%clk 0:02:31.1]} 14.
Qxg6 {[%clk 0:02:03.1]} 14... hxg6 {[%clk 0:02:32]} 15. Rd1 {[%clk 0:02:03.2]}
15... a5 {[%clk 0:01:55.6]} 16. Be3 {[%clk 0:02:00.2]} 16... Ng4 {[%clk
0:01:46.4]} 17. Bd4 {[%clk 0:01:56.6]} 17... Ne6 {[%clk 0:01:45.3]} 18. Bb6
{[%clk 0:01:27.4]} 18... a4 {[%clk 0:01:19.7]} 19. h3 {[%clk 0:01:04.8]} 19...
Ne5 {[%clk 0:01:18.7]} 20. b3 {[%clk 0:00:52.2]} 20... Nd7 {[%clk 0:01:02.8]}
21. Be3 {[%clk 0:00:46.9]} 21... Bf6 {[%clk 0:01:02.4]} 22. Bd2 {[%clk
0:00:41.1]} 22... axb3 {[%clk 0:00:47.4]} 23. axb3 {[%clk 0:00:40.5]} 23... Rxa1
{[%clk 0:00:48.3]} 24. Rxa1 {[%clk 0:00:39.8]} 24... Ndc5 {[%clk 0:00:48.9]} 25.
Ra8 {[%clk 0:00:34.2]} 25... O-O {[%clk 0:00:48.9]} 26. b4 {[%clk 0:00:33.1]}
26... Nb3 {[%clk 0:00:39.1]} 27. Be1 {[%clk 0:00:30.4]} 27... Bd7 {[%clk
0:00:39.7]} 28. Rxf8+ {[%clk 0:00:29.4]} 28... Kxf8 {[%clk 0:00:40.6]} 29. Ne4
{[%clk 0:00:28.8]} 29... Be7 {[%clk 0:00:40.1]} 30. Bc3 {[%clk 0:00:26.6]} 30...
Nc7 {[%clk 0:00:36.1]} 31. Ne3 {[%clk 0:00:23.2]} 31... Nb5 {[%clk 0:00:35.9]}
32. Be1 {[%clk 0:00:22.2]} 32... N5d4 {[%clk 0:00:33.3]} 33. Kf1 {[%clk
0:00:21.1]} 33... f5 {[%clk 0:00:28]} 34. Nd2 {[%clk 0:00:17.4]} 34... Nc1
{[%clk 0:00:23.8]} 35. Ndc4 {[%clk 0:00:10]} 35... Ncxe2 {[%clk 0:00:20.4]} 36.
Na5 {[%clk 0:00:09.5]} 36... Bc8 {[%clk 0:00:17.5]} 37. Nec4 {[%clk 0:00:06.2]}
37... Bd8 {[%clk 0:00:14.6]} 38. Ne5 {[%clk 0:00:03.7]} 38... g5 {[%clk
0:00:13.1]} 39. Nd3 {[%clk 0:00:03.1]} 39... g4 {[%clk 0:00:10.7]} 40. Nc4
{[%clk 0:00:03.1]} 40... gxh3 {[%clk 0:00:10.3]} 41. Bxh3 {[%clk 0:00:04]} 41...
Bc7 {[%clk 0:00:09]} 42. Nc5 {[%clk 0:00:03.9]} 42... b6 {[%clk 0:00:08.4]} 43.
Nd3 {[%clk 0:00:04.2]} 43... Be6 {[%clk 0:00:08.1]} 44. Ne3 {[%clk 0:00:04.4]}
44... g6 {[%clk 0:00:08.5]} 45. Bg2 {[%clk 0:00:04.1]} 45... Ke7 {[%clk
0:00:08.3]} 46. Bxc6 {[%clk 0:00:04.2]} 46... Nxc6 {[%clk 0:00:08.3]} 47. Kxe2
{[%clk 0:00:04.3]} 47... Nd4+ {[%clk 0:00:09]} 48. Kd2 {[%clk 0:00:04.5]} 48...
Kd7 {[%clk 0:00:09.5]} 49. Kc3 {[%clk 0:00:05]} 49... Nb5+ {[%clk 0:00:09.2]}
50. Kd2 {[%clk 0:00:05.5]} 50... Kc6 {[%clk 0:00:10.1]} 51. Kc2 {[%clk
0:00:05.9]} 51... Nd4+ {[%clk 0:00:10.5]} 52. Kc3 {[%clk 0:00:06]} 52... Nf3
{[%clk 0:00:11.1]} 53. Bd2 {[%clk 0:00:06.2]} 53... Nxd2 {[%clk 0:00:11]} 54.
Kxd2 {[%clk 0:00:06.8]} 54... Kb5 {[%clk 0:00:11.7]} 55. Kc3 {[%clk 0:00:07.3]}
55... Bd6 {[%clk 0:00:11.8]} 56. Nc2 {[%clk 0:00:07.1]} 56... Kc6 {[%clk
0:00:11.1]} 57. Nd4+ {[%clk 0:00:07.6]} 57... Kd5 {[%clk 0:00:11.7]} 58. Nxe6
{[%clk 0:00:08.1]} 58... Kxe6 {[%clk 0:00:12.6]} 59. Kd4 {[%clk 0:00:08.6]}
59... g5 {[%clk 0:00:11.5]} 60. Kc4 {[%clk 0:00:08.8]} 60... g4 {[%clk
0:00:08.9]} 61. Kb5 {[%clk 0:00:09.2]} 61... Bc7 {[%clk 0:00:09.5]} 62. Kc6
{[%clk 0:00:09.7]} 62... Bd8 {[%clk 0:00:10.1]} 63. Nf4+ {[%clk 0:00:10.1]}
63... Ke5 {[%clk 0:00:10.3]} 64. Nd5 {[%clk 0:00:08.5]} 64... Ke4 {[%clk
0:00:09.3]} 65. Nxb6 {[%clk 0:00:08.8]} 65... Kf3 {[%clk 0:00:09.9]} 66. Nc4
{[%clk 0:00:07.2]} 66... Kxf2 {[%clk 0:00:10]} 67. Nd6 {[%clk 0:00:07]} 67... f4
{[%clk 0:00:10.3]} 68. gxf4 {[%clk 0:00:07.5]} 68... g3 {[%clk 0:00:11.2]} 69.
Ne4+ {[%clk 0:00:07.8]} 69... Kf3 {[%clk 0:00:11.7]} 70. Nxg3 {[%clk 0:00:08.3]}
70... Kxg3 {[%clk 0:00:11]} 71. b5 {[%clk 0:00:08.3]} 71... Kxf4 {[%clk
0:00:11.3]} 72. b6 {[%clk 0:00:08.1]} 72... Bxb6 {[%clk 0:00:11.6]} 1/2-1/2

[Event "Early-Titled-Tuesday-Blitz-May-07-2024"]
[Site "Chess.com"]
[Date "2024.05.07"]
[Round "4"]
[White "Lucky_Puncher"]
[Black "schachlana"]
[Result "1-0"]
[WhiteElo "2538"]
[BlackElo "2347"]
[TimeControl "180+1"]
[EndTime "8:43:41 PDT"]
[Termination "Lucky_Puncher won by resignation"]

1. d4 {[%clk 0:02:59.8]} 1... Nf6 {[%clk 0:02:56.9]} 2. c4 {[%clk 0:03:00.2]}
2... g6 {[%clk 0:02:53.9]} 3. Nc3 {[%clk 0:03:00.3]} 3... Bg7 {[%clk 0:02:54.3]}
4. e4 {[%clk 0:03:01]} 4... d6 {[%clk 0:02:55.2]} 5. h3 {[%clk 0:03:01.3]} 5...
O-O {[%clk 0:02:55.3]} 6. Be3 {[%clk 0:03:02]} 6... c5 {[%clk 0:02:55.4]} 7. d5
{[%clk 0:03:01.6]} 7... e6 {[%clk 0:02:54.8]} 8. Nf3 {[%clk 0:03:01.9]} 8...
exd5 {[%clk 0:02:54.1]} 9. cxd5 {[%clk 0:03:02.8]} 9... Re8 {[%clk 0:02:54.5]}
10. Nd2 {[%clk 0:03:02.8]} 10... a6 {[%clk 0:02:52.4]} 11. a4 {[%clk 0:03:01.7]}
11... Nbd7 {[%clk 0:02:45.3]} 12. Be2 {[%clk 0:03:00.8]} 12... Rb8 {[%clk
0:02:42.3]} 13. O-O {[%clk 0:03:00.5]} 13... Qc7 {[%clk 0:02:22.3]} 14. Qc2
{[%clk 0:03:00.2]} 14... h5 {[%clk 0:02:17.9]} 15. Rae1 {[%clk 0:02:57.5]} 15...
Nb6 {[%clk 0:02:08.1]} 16. Bf4 {[%clk 0:02:54.7]} 16... Nbd7 {[%clk 0:01:45.8]}
17. Bh2 {[%clk 0:02:53.3]} 17... h4 {[%clk 0:01:35.4]} 18. f4 {[%clk 0:02:51.5]}
18... Nf8 {[%clk 0:01:33.8]} 19. e5 {[%clk 0:02:48.4]} 19... N6d7 {[%clk
0:01:22.2]} 20. Nc4 {[%clk 0:02:46.9]} 20... dxe5 {[%clk 0:01:05.5]} 21. Bg4
{[%clk 0:02:24.5]} 21... b5 {[%clk 0:01:01.1]} 22. axb5 {[%clk 0:02:22]} 22...
axb5 {[%clk 0:01:02]} 23. Nxe5 {[%clk 0:02:17.7]} 23... Nxe5 {[%clk 0:00:54.2]}
24. Bxc8 {[%clk 0:02:12.4]} 24... Nf3+ {[%clk 0:00:48.3]} 25. gxf3 {[%clk
0:02:09.2]} 25... Rbxc8 {[%clk 0:00:48.4]} 26. f5 {[%clk 0:02:08.9]} 26... Qd7
{[%clk 0:00:38.7]} 27. fxg6 {[%clk 0:02:03.1]} 27... Nxg6 {[%clk 0:00:39.4]} 28.
Ne4 {[%clk 0:01:48.2]} 28... Qxh3 {[%clk 0:00:37.1]} 29. Qg2 {[%clk 0:01:13]}
29... Qxg2+ {[%clk 0:00:28.8]} 30. Kxg2 {[%clk 0:01:13.9]} 30... Bxb2 {[%clk
0:00:29.4]} 31. Rb1 {[%clk 0:01:12.9]} 31... Bd4 {[%clk 0:00:26.5]} 32. Rxb5
{[%clk 0:01:10.9]} 32... Rcd8 {[%clk 0:00:27.2]} 33. Rd1 {[%clk 0:01:05.5]}
33... f5 {[%clk 0:00:19.9]} 34. Nd6 {[%clk 0:00:57.9]} 34... Re2+ {[%clk
0:00:18.3]} 35. Kh3 {[%clk 0:00:55.6]} 35... Rxh2+ {[%clk 0:00:18.7]} 36. Kxh2
{[%clk 0:00:56.1]} 36... Rxd6 {[%clk 0:00:19.6]} 37. Rb7 {[%clk 0:00:50.3]}
37... Rxd5 {[%clk 0:00:17.6]} 38. Kh1 {[%clk 0:00:46.4]} 38... Rd6 {[%clk
0:00:15.8]} 39. Re1 {[%clk 0:00:44.1]} 39... Nf8 {[%clk 0:00:13]} 40. Re2 {[%clk
0:00:42.9]} 40... Bf6 {[%clk 0:00:10.8]} 41. Rg2+ {[%clk 0:00:42.6]} 41... Kh8
{[%clk 0:00:10.7]} 42. Rf7 {[%clk 0:00:43.3]} 42... Rd1+ {[%clk 0:00:07.9]} 43.
Kh2 {[%clk 0:00:42.7]} 43... Be5+ {[%clk 0:00:08.3]} 44. Kh3 {[%clk 0:00:43.1]}
44... Rd8 {[%clk 0:00:08.3]} 45. Rxf5 {[%clk 0:00:39.9]} 45... Bg3 {[%clk
0:00:06.2]} 46. Rh5+ {[%clk 0:00:36.2]} 46... Kg7 {[%clk 0:00:06.4]} 47. Rxh4
{[%clk 0:00:37]} 47... Kf6 {[%clk 0:00:03]} 48. Rxg3 {[%clk 0:00:37.3]} 48...
Ne6 {[%clk 0:00:03.9]} 49. Rh6+ {[%clk 0:00:36.6]} 49... Ke7 {[%clk 0:00:04.3]}
50. Rg4 {[%clk 0:00:32]} 50... Rc8 {[%clk 0:00:03]} 51. Rc4 {[%clk 0:00:29.3]}
51... Kf7 {[%clk 0:00:02.3]} 52. Kg3 {[%clk 0:00:27.5]} 52... Rd8 {[%clk
0:00:02]} 53. Re4 {[%clk 0:00:24.8]} 53... Rg8+ {[%clk 0:00:02.7]} 54. Kf2
{[%clk 0:00:24.8]} 54... Re8 {[%clk 0:00:03.6]} 55. Rh7+ {[%clk 0:00:24.3]}
55... Kf6 {[%clk 0:00:03.9]} 56. Rh6+ {[%clk 0:00:24.5]} 56... Kf5 {[%clk
0:00:04.1]} 57. Rh5+ {[%clk 0:00:24.9]} 57... Kg6 {[%clk 0:00:04.1]} 58. Rxc5
{[%clk 0:00:23.1]} 58... Nxc5 {[%clk 0:00:02.6]} 59. Rxe8 {[%clk 0:00:23]} 59...
Nd3+ {[%clk 0:00:03.4]} 60. Kg3 {[%clk 0:00:22.6]} 60... Nc5 {[%clk 0:00:02.7]}
61. Re5 {[%clk 0:00:22.4]} 61... Nd7 {[%clk 0:00:03.2]} 62. Re6+ {[%clk
0:00:22.7]} 62... Nf6 {[%clk 0:00:04.1]} 63. Ra6 {[%clk 0:00:23.4]} 63... Kf7
{[%clk 0:00:05]} 64. Kf4 {[%clk 0:00:23.1]} 64... Kg6 {[%clk 0:00:05.9]} 65. Ke5
{[%clk 0:00:22.9]} 1-0